[Event "Titled Tuesday Blitz September 27 Early 2022"]
[White "Foerster-Yialamas, Lucas"]
[Black "Rangel, Daniel"]
[WhiteFideId "30901774"]
[BlackFideId "2124475"]
[WhiteElo "1804"]
[BlackElo "2225"]
[Result "0-1"]
[Round "06"]
[TimeControl "180+1"]
[Date "2022.09.27"]
[WhiteClock "0:00:35"]
[BlackClock "0:00:17"]

1. b3 {[%clk 0:03:00]}  Nf6 {[%clk 0:02:59]} 2. Bb2 {[%clk 0:03:01]}  Nc6 {[%clk 0:02:57]} 3. Nf3 {[%clk 0:03:02]}  d6 {[%clk 0:02:57]} 4. h4 {[%clk 0:03:02]}  e5 {[%clk 0:02:57]} 5. d3 {[%clk 0:03:02]}  Be7 {[%clk 0:02:56]} 6. Nbd2 {[%clk 0:03:03]}  Be6 {[%clk 0:02:56]} 7. c4 {[%clk 0:03:01]}  h6 {[%clk 0:02:56]} 8. e3 {[%clk 0:03:01]}  Qd7 {[%clk 0:02:56]} 9. Be2 {[%clk 0:03:02]}  O-O-O {[%clk 0:02:55]} 10. a3 {[%clk 0:03:00]}  Kb8 {[%clk 0:02:55]} 11. b4 {[%clk 0:03:00]}  g5 {[%clk 0:02:47]} 12. hxg5 {[%clk 0:02:55]}  hxg5 {[%clk 0:02:47]} 13. Rxh8 {[%clk 0:02:56]}  Rxh8 {[%clk 0:02:47]} 14. Nxg5 {[%clk 0:02:57]}  Rh1+ {[%clk 0:02:47]} 15. Nf1 {[%clk 0:02:58]}  Bf5 {[%clk 0:02:43]} 16. Nxf7 {[%clk 0:02:55]}  e4 {[%clk 0:02:39]} 17. d4 {[%clk 0:02:52]}  d5 {[%clk 0:02:23]} 18. Ne5 {[%clk 0:02:38]}  Qe6 {[%clk 0:02:17]} 19. Nxc6+ {[%clk 0:02:37]}  Qxc6 {[%clk 0:02:17]} 20. c5 {[%clk 0:02:37]}  Qe6 {[%clk 0:02:13]} 21. b5 {[%clk 0:02:35]}  Ng4 {[%clk 0:02:13]} 22. b6 {[%clk 0:02:27]}  axb6 {[%clk 0:02:09]} 23. cxb6 {[%clk 0:02:23]}  Qxb6 {[%clk 0:02:04]} 24. Bc3 {[%clk 0:02:21]}  Qe6 {[%clk 0:02:01]} 25. Rb1 {[%clk 0:02:16]}  Bh4 {[%clk 0:01:36]} 26. g3 {[%clk 0:02:13]}  Be7 {[%clk 0:01:34]} 27. Qb3 {[%clk 0:01:53]}  b6 {[%clk 0:01:26]} 28. a4 {[%clk 0:01:50]}  Qf6 {[%clk 0:01:21]} 29. a5 {[%clk 0:01:47]}  Bd8 {[%clk 0:01:09]} 30. axb6 {[%clk 0:01:40]}  cxb6 {[%clk 0:01:10]} 31. Qxd5 {[%clk 0:01:40]}  Nxf2 {[%clk 0:00:58]} 32. Qe5+ {[%clk 0:01:40]}  Qxe5 {[%clk 0:00:57]} 33. dxe5 {[%clk 0:01:41]}  Nd3+ {[%clk 0:00:55]} 34. Bxd3 {[%clk 0:01:41]}  exd3 {[%clk 0:00:56]} 35. Rd1 {[%clk 0:01:31]}  Bh3 {[%clk 0:00:51]} 36. Kf2 {[%clk 0:01:29]}  Be7 {[%clk 0:00:44]} 37. Bd4 {[%clk 0:01:16]}  b5 {[%clk 0:00:44]} 38. e6 {[%clk 0:01:04]}  Kb7 {[%clk 0:00:41]} 39. Be5 {[%clk 0:00:59]}  Kc6 {[%clk 0:00:34]} 40. e4 {[%clk 0:00:51]}  Bc5+ {[%clk 0:00:28]} 41. Bd4 {[%clk 0:00:39]}  Bxd4+ {[%clk 0:00:27]} 42. Kf3 {[%clk 0:00:36]}  Rxf1+ {[%clk 0:00:25]} 43. Rxf1 {[%clk 0:00:35]}  Bxf1 {[%clk 0:00:26]} 44. e7 {[%clk 0:00:36]}  Be2+ {[%clk 0:00:26]} 45. Kf4 {[%clk 0:00:36]}  Kd7 {[%clk 0:00:26]} 46. e5 {[%clk 0:00:34]}  d2 {[%clk 0:00:26]} 47. e6+ {[%clk 0:00:35]}  Kxe7 {[%clk 0:00:25]} 48. Ke4 {[%clk 0:00:36]}  d1=Q {[%clk 0:00:24]} 49. g4 {[%clk 0:00:37]}  Qd3+ {[%clk 0:00:23]} 50. Kd5 {[%clk 0:00:37]}  Qc4+ {[%clk 0:00:20]} 51. Ke4 {[%clk 0:00:37]}  Bd3+ {[%clk 0:00:21]} 52. Kf3 {[%clk 0:00:37]}  Qxe6 {[%clk 0:00:21]} 53. g5 {[%clk 0:00:37]}  Qf5+ {[%clk 0:00:22]} 54. Kg3 {[%clk 0:00:37]}  Be2 {[%clk 0:00:19]} 55. g6 {[%clk 0:00:37]}  Be5+ {[%clk 0:00:19]} 56. Kh4 {[%clk 0:00:35]}  Qh5# {[%clk 0:00:17]} 0-1


[Site "https://www.chess.com"]

[Event "Titled Tuesday Blitz September 27 Early 2022"]
[White "Gabrielian, Artur"]
[Black "Caruana, Fabiano"]
[WhiteFideId "4131002"]
[BlackFideId "2020009"]
[WhiteElo "2467"]
[BlackElo "2847"]
[Result "0-1"]
[Round "06"]
[TimeControl "180+1"]
[Date "2022.09.27"]
[WhiteClock "0:00:02"]
[BlackClock "0:00:19"]

1. e4 {[%clk 0:03:00]}  e5 {[%clk 0:02:59]} 2. Nf3 {[%clk 0:02:57]}  Nf6 {[%clk 0:02:59]} 3. Nc3 {[%clk 0:02:55]}  Nc6 {[%clk 0:02:57]} 4. h3 {[%clk 0:02:56]}  Bb4 {[%clk 0:02:53]} 5. Bd3 {[%clk 0:02:31]}  Bxc3 {[%clk 0:02:52]} 6. dxc3 {[%clk 0:02:30]}  d6 {[%clk 0:02:51]} 7. Nd2 {[%clk 0:02:26]}  Be6 {[%clk 0:02:47]} 8. c4 {[%clk 0:02:25]}  Qd7 {[%clk 0:02:43]} 9. Nf1 {[%clk 0:02:25]}  Ne7 {[%clk 0:02:29]} 10. Bg5 {[%clk 0:02:19]}  Qc6 {[%clk 0:02:16]} 11. Bxf6 {[%clk 0:02:17]}  gxf6 {[%clk 0:02:17]} 12. Ne3 {[%clk 0:02:15]}  O-O-O {[%clk 0:02:16]} 13. Qe2 {[%clk 0:02:13]}  h5 {[%clk 0:02:13]} 14. h4 {[%clk 0:02:10]}  Ng6 {[%clk 0:02:09]} 15. g3 {[%clk 0:02:11]}  f5 {[%clk 0:02:08]} 16. Nd5 {[%clk 0:02:04]}  f4 {[%clk 0:01:56]} 17. Rg1 {[%clk 0:01:36]}  Kb8 {[%clk 0:01:52]} 18. Qd2 {[%clk 0:01:25]}  Qd7 {[%clk 0:01:40]} 19. O-O-O {[%clk 0:01:23]}  c6 {[%clk 0:01:28]} 20. Nc3 {[%clk 0:01:22]}  Qc7 {[%clk 0:01:16]} 21. b3 {[%clk 0:01:15]}  a6 {[%clk 0:01:13]} 22. Kb2 {[%clk 0:01:15]}  Qb6 {[%clk 0:01:13]} 23. Be2 {[%clk 0:01:11]}  Qxf2 {[%clk 0:01:10]} 24. Rdf1 {[%clk 0:01:04]}  Qd4 {[%clk 0:01:08]} 25. Qxd4 {[%clk 0:00:48]}  exd4 {[%clk 0:01:09]} 26. Nd1 {[%clk 0:00:48]}  fxg3 {[%clk 0:01:08]} 27. Rxg3 {[%clk 0:00:48]}  Nxh4 {[%clk 0:01:03]} 28. Rh1 {[%clk 0:00:44]}  Ng6 {[%clk 0:01:03]} 29. Rxh5 {[%clk 0:00:41]}  Nf4 {[%clk 0:01:03]} 30. Rxh8 {[%clk 0:00:39]}  Rxh8 {[%clk 0:01:03]} 31. Bd3 {[%clk 0:00:24]}  Rh2 {[%clk 0:01:01]} 32. Rf3 {[%clk 0:00:21]}  Nxd3+ {[%clk 0:01:01]} 33. Rxd3 {[%clk 0:00:21]}  c5 {[%clk 0:01:01]} 34. Kc1 {[%clk 0:00:17]}  Re2 {[%clk 0:00:47]} 35. c3 {[%clk 0:00:13]}  Rxe4 {[%clk 0:00:47]} 36. cxd4 {[%clk 0:00:14]}  Rxd4 {[%clk 0:00:47]} 37. Rxd4 {[%clk 0:00:12]}  cxd4 {[%clk 0:00:48]} 38. Kd2 {[%clk 0:00:13]}  Bf5 {[%clk 0:00:47]} 39. b4 {[%clk 0:00:12]}  Kc7 {[%clk 0:00:46]} 40. a3 {[%clk 0:00:13]}  Be4 {[%clk 0:00:46]} 41. Nf2 {[%clk 0:00:12]}  f5 {[%clk 0:00:47]} 42. Nh3 {[%clk 0:00:12]}  Kc6 {[%clk 0:00:45]} 43. Nf4 {[%clk 0:00:12]}  b5 {[%clk 0:00:44]} 44. cxb5+ {[%clk 0:00:11]}  axb5 {[%clk 0:00:44]} 45. Ke2 {[%clk 0:00:08]}  d3+ {[%clk 0:00:32]} 46. Ke3 {[%clk 0:00:08]}  d5 {[%clk 0:00:31]} 47. Ne6 {[%clk 0:00:07]}  Kd6 {[%clk 0:00:28]} 48. Nd4 {[%clk 0:00:08]}  f4+ {[%clk 0:00:29]} 49. Kxf4 {[%clk 0:00:06]}  d2 {[%clk 0:00:24]} 50. Nxb5+ {[%clk 0:00:06]}  Kc6 {[%clk 0:00:24]} 51. Nc3 {[%clk 0:00:06]}  d4 {[%clk 0:00:19]} 52. b5+ {[%clk 0:00:02]}  Kb6 {[%clk 0:00:17]} 53. Na4+ {[%clk 0:00:01]}  Kxb5 {[%clk 0:00:16]} 54. Nb2 {[%clk 0:00:02]}  Bc2 {[%clk 0:00:17]} 55. Ke5 {[%clk 0:00:02]}  Kc5 {[%clk 0:00:17]} 56. a4 {[%clk 0:00:01]}  d1=Q {[%clk 0:00:17]} 57. Nxd1 {[%clk 0:00:01]}  Bxd1 {[%clk 0:00:18]} 58. a5 {[%clk 0:00:02]}  Bf3 {[%clk 0:00:18]} 59. a6 {[%clk 0:00:02]}  Ba8 {[%clk 0:00:19]} 0-1


[Site "https://www.chess.com"]

[Event "Titled Tuesday Blitz September 27 Early 2022"]
[White "Garv Gaur"]
[Black "Bryakin, Mikhail"]
[WhiteFideId "45030839"]
[BlackFideId "4165314"]
[WhiteElo "1950"]
[BlackElo "2357"]
[Result "1-0"]
[Round "06"]
[TimeControl "180+1"]
[Date "2022.09.27"]
[WhiteClock "0:01:30"]
[BlackClock "0:01:51"]

1. d4 {[%clk 0:03:00]}  Nf6 {[%clk 0:02:55]} 2. Nf3 {[%clk 0:03:00]}  c5 {[%clk 0:02:50]} 3. d5 {[%clk 0:02:54]}  e6 {[%clk 0:02:49]} 4. c4 {[%clk 0:02:53]}  exd5 {[%clk 0:02:48]} 5. cxd5 {[%clk 0:02:54]}  d6 {[%clk 0:02:49]} 6. Nc3 {[%clk 0:02:53]}  g6 {[%clk 0:02:45]} 7. g3 {[%clk 0:02:52]}  Bg7 {[%clk 0:02:46]} 8. Bg2 {[%clk 0:02:52]}  O-O {[%clk 0:02:47]} 9. O-O {[%clk 0:02:52]}  Re8 {[%clk 0:02:47]} 10. Bf4 {[%clk 0:02:49]}  Ne4 {[%clk 0:02:47]} 11. Nxe4 {[%clk 0:02:45]}  Rxe4 {[%clk 0:02:48]} 12. Nd2 {[%clk 0:02:45]}  Rb4 {[%clk 0:02:48]} 13. Rb1 {[%clk 0:02:42]}  b5 {[%clk 0:02:37]} 14. b3 {[%clk 0:02:33]}  Bf5 {[%clk 0:02:32]} 15. e4 {[%clk 0:02:32]}  Bc8 {[%clk 0:02:31]} 16. a3 {[%clk 0:02:20]}  Rd4 {[%clk 0:02:31]} 17. Be3 {[%clk 0:02:20]}  Nd7 {[%clk 0:02:25]} 18. Bxd4 {[%clk 0:02:18]}  Bxd4 {[%clk 0:02:26]} 19. Nf3 {[%clk 0:02:18]}  Bg7 {[%clk 0:02:26]} 20. Qe2 {[%clk 0:02:16]}  a6 {[%clk 0:02:21]} 21. Rfe1 {[%clk 0:02:15]}  Ne5 {[%clk 0:02:20]} 22. Nxe5 {[%clk 0:02:16]}  Bxe5 {[%clk 0:02:21]} 23. f4 {[%clk 0:02:16]}  Bd4+ {[%clk 0:02:21]} 24. Kh1 {[%clk 0:02:16]}  f6 {[%clk 0:02:20]} 25. Rbd1 {[%clk 0:02:10]}  Qb6 {[%clk 0:02:19]} 26. e5 {[%clk 0:01:45]}  fxe5 {[%clk 0:02:12]} 27. Rxd4 {[%clk 0:01:45]}  cxd4 {[%clk 0:02:10]} 28. fxe5 {[%clk 0:01:46]}  dxe5 {[%clk 0:02:09]} 29. Qxe5 {[%clk 0:01:43]}  Bb7 {[%clk 0:02:08]} 30. Bh3 {[%clk 0:01:32]}  h5 {[%clk 0:01:51]} 31. Be6+ {[%clk 0:01:31]}  Kh7 {[%clk 0:01:51]} 32. Rf1 {[%clk 0:01:30]} 1-0


[Site "https://www.chess.com"]

[Event "Titled Tuesday Blitz September 27 Early 2022"]
[White "Goncalves, Davi Sulzbacher"]
[Black "Spalir, Monika"]
[WhiteFideId "2154510"]
[BlackFideId "14609118"]
[WhiteElo "2107"]
[BlackElo "2032"]
[Result "0-1"]
[Round "06"]
[TimeControl "180+1"]
[Date "2022.09.27"]
[WhiteClock "0:00:21"]
[BlackClock "0:00:13"]

1. e4 {[%clk 0:03:00]}  c6 {[%clk 0:02:59]} 2. Nf3 {[%clk 0:03:00]}  d5 {[%clk 0:02:59]} 3. Nc3 {[%clk 0:03:00]}  dxe4 {[%clk 0:02:50]} 4. Nxe4 {[%clk 0:03:00]}  Nf6 {[%clk 0:02:51]} 5. Nxf6+ {[%clk 0:03:00]}  exf6 {[%clk 0:02:51]} 6. b3 {[%clk 0:02:59]}  Bd6 {[%clk 0:02:44]} 7. Bb2 {[%clk 0:02:51]}  O-O {[%clk 0:02:44]} 8. Be2 {[%clk 0:02:50]}  Re8 {[%clk 0:02:29]} 9. O-O {[%clk 0:02:49]}  Nd7 {[%clk 0:02:30]} 10. d4 {[%clk 0:02:45]}  Nf8 {[%clk 0:02:30]} 11. h3 {[%clk 0:02:41]}  Ng6 {[%clk 0:02:25]} 12. Re1 {[%clk 0:02:38]}  Be6 {[%clk 0:02:17]} 13. c4 {[%clk 0:02:37]}  Bc7 {[%clk 0:02:15]} 14. a4 {[%clk 0:02:34]}  Qd7 {[%clk 0:02:05]} 15. Bf1 {[%clk 0:02:33]}  Rad8 {[%clk 0:01:58]} 16. a5 {[%clk 0:02:33]}  Bb8 {[%clk 0:01:53]} 17. a6 {[%clk 0:02:07]}  b5 {[%clk 0:01:47]} 18. d5 {[%clk 0:02:06]}  cxd5 {[%clk 0:01:44]} 19. cxb5 {[%clk 0:02:05]}  Bf5 {[%clk 0:01:34]} 20. Rxe8+ {[%clk 0:01:31]}  Rxe8 {[%clk 0:01:31]} 21. b6 {[%clk 0:01:16]}  Be4 {[%clk 0:01:29]} 22. b7 {[%clk 0:01:01]}  Nf4 {[%clk 0:00:50]} 23. Nd4 {[%clk 0:00:44]}  Qd6 {[%clk 0:00:45]} 24. g3 {[%clk 0:00:43]}  Qe5 {[%clk 0:00:16]} 25. Qd2 {[%clk 0:00:28]}  Nh5 {[%clk 0:00:15]} 26. Nc6 {[%clk 0:00:22]}  Qf5 {[%clk 0:00:13]} 27. Nxb8 {[%clk 0:00:21]}  Qf3 {[%clk 0:00:13]} 0-1


[Site "https://www.chess.com"]

[Event "Titled Tuesday Blitz September 27 Early 2022"]
[White "Hafiz, Arif Abdul"]
[Black "Odegov, Artem"]
[WhiteFideId "7104227"]
[BlackFideId "34183644"]
[WhiteElo "2198"]
[BlackElo "2286"]
[Result "1-0"]
[Round "06"]
[TimeControl "180+1"]
[Date "2022.09.27"]
[WhiteClock "0:00:19"]
[BlackClock "0:00:02"]

1. e4 {[%clk 0:03:00]}  e6 {[%clk 0:02:58]} 2. d4 {[%clk 0:03:00]}  d5 {[%clk 0:02:57]} 3. Nc3 {[%clk 0:03:00]}  Bb4 {[%clk 0:02:55]} 4. e5 {[%clk 0:03:01]}  c5 {[%clk 0:02:54]} 5. Bd2 {[%clk 0:03:00]}  Ne7 {[%clk 0:02:54]} 6. Nb5 {[%clk 0:03:00]}  Bxd2+ {[%clk 0:02:53]} 7. Qxd2 {[%clk 0:03:01]}  O-O {[%clk 0:02:54]} 8. f4 {[%clk 0:03:02]}  Nbc6 {[%clk 0:02:53]} 9. dxc5 {[%clk 0:02:56]}  f6 {[%clk 0:02:49]} 10. exf6 {[%clk 0:02:55]}  Rxf6 {[%clk 0:02:50]} 11. Nf3 {[%clk 0:02:55]}  Ng6 {[%clk 0:02:49]} 12. g3 {[%clk 0:02:41]}  e5 {[%clk 0:02:49]} 13. Nxe5 {[%clk 0:02:39]}  Ngxe5 {[%clk 0:02:47]} 14. fxe5 {[%clk 0:02:39]}  Nxe5 {[%clk 0:02:48]} 15. O-O-O {[%clk 0:02:39]}  Bg4 {[%clk 0:02:36]} 16. Be2 {[%clk 0:01:34]}  Rf2 {[%clk 0:02:29]} 17. Bxg4 {[%clk 0:01:34]}  Rxd2 {[%clk 0:02:08]} 18. Be6+ {[%clk 0:01:34]}  Kh8 {[%clk 0:02:08]} 19. Rxd2 {[%clk 0:01:35]}  Qe7 {[%clk 0:01:52]} 20. Bxd5 {[%clk 0:01:09]}  Qxc5 {[%clk 0:01:51]} 21. Bxb7 {[%clk 0:01:05]}  Rb8 {[%clk 0:01:47]} 22. Rhd1 {[%clk 0:00:57]}  g6 {[%clk 0:01:44]} 23. Nd6 {[%clk 0:00:57]}  Qb6 {[%clk 0:01:17]} 24. b3 {[%clk 0:00:49]}  Rxb7 {[%clk 0:00:54]} 25. Nxb7 {[%clk 0:00:30]}  Qxb7 {[%clk 0:00:55]} 26. Rd5 {[%clk 0:00:26]}  Nf7 {[%clk 0:00:47]} 27. Rd7 {[%clk 0:00:25]}  Qf3 {[%clk 0:00:47]} 28. Re7 {[%clk 0:00:23]}  Qf2 {[%clk 0:00:02]} 29. Rdd7 {[%clk 0:00:21]}  Qf1+ {[%clk 0:00:02]} 30. Kd2 {[%clk 0:00:20]}  Qf6 {[%clk 0:00:03]} 31. Rxf7 {[%clk 0:00:19]}  Qg5+ {[%clk 0:00:04]} 32. Kc3 {[%clk 0:00:19]}  Qc5+ {[%clk 0:00:03]} 33. Kd3 {[%clk 0:00:19]}  Qb5+ {[%clk 0:00:03]} 34. c4 {[%clk 0:00:19]}  Qc5 {[%clk 0:00:02]} 35. Rd8+ {[%clk 0:00:19]} 1-0


[Site "https://www.chess.com"]

[Event "Titled Tuesday Blitz September 27 Early 2022"]
[White "Haitin, Ilja"]
[Black "Fiorito, Francisco"]
[WhiteFideId "4501764"]
[BlackFideId "180165"]
[WhiteElo "2243"]
[BlackElo "1787"]
[Result "1-0"]
[Round "06"]
[TimeControl "180+1"]
[Date "2022.09.27"]
[WhiteClock "0:00:15"]
[BlackClock "0:00:08"]

1. e4 {[%clk 0:03:00]}  c5 {[%clk 0:02:59]} 2. Nf3 {[%clk 0:03:00]}  Nc6 {[%clk 0:02:59]} 3. Bb5 {[%clk 0:03:00]}  g6 {[%clk 0:02:57]} 4. O-O {[%clk 0:02:59]}  Bg7 {[%clk 0:02:57]} 5. Re1 {[%clk 0:02:59]}  Nf6 {[%clk 0:02:55]} 6. e5 {[%clk 0:02:59]}  Nd5 {[%clk 0:02:53]} 7. Nc3 {[%clk 0:03:00]}  Nc7 {[%clk 0:02:47]} 8. Bxc6 {[%clk 0:03:00]}  dxc6 {[%clk 0:02:47]} 9. h3 {[%clk 0:02:59]}  O-O {[%clk 0:02:47]} 10. d3 {[%clk 0:02:59]}  h6 {[%clk 0:02:46]} 11. Bf4 {[%clk 0:02:56]}  Be6 {[%clk 0:02:40]} 12. Qd2 {[%clk 0:02:55]}  Kh7 {[%clk 0:02:40]} 13. Ne4 {[%clk 0:02:50]}  b6 {[%clk 0:02:37]} 14. g4 {[%clk 0:02:45]}  Nd5 {[%clk 0:02:35]} 15. Bg3 {[%clk 0:02:41]}  Nc7 {[%clk 0:02:12]} 16. Re2 {[%clk 0:02:36]}  c4 {[%clk 0:02:12]} 17. d4 {[%clk 0:02:11]}  Bd5 {[%clk 0:02:07]} 18. Qe3 {[%clk 0:02:09]}  Ne6 {[%clk 0:02:05]} 19. Nc3 {[%clk 0:02:07]}  b5 {[%clk 0:02:05]} 20. Nxd5 {[%clk 0:02:07]}  Qxd5 {[%clk 0:02:05]} 21. c3 {[%clk 0:02:03]}  c5 {[%clk 0:02:05]} 22. Rd2 {[%clk 0:01:58]}  Rfd8 {[%clk 0:02:04]} 23. Rad1 {[%clk 0:01:49]}  Rdc8 {[%clk 0:01:43]} 24. dxc5 {[%clk 0:01:38]}  Qxc5 {[%clk 0:01:42]} 25. Nd4 {[%clk 0:01:37]}  Nxd4 {[%clk 0:01:21]} 26. Rxd4 {[%clk 0:01:29]}  e6 {[%clk 0:01:21]} 27. Rd7 {[%clk 0:01:22]}  Qxe3 {[%clk 0:01:16]} 28. fxe3 {[%clk 0:01:23]}  Kg8 {[%clk 0:01:15]} 29. Rb7 {[%clk 0:01:09]}  a5 {[%clk 0:01:10]} 30. Rdd7 {[%clk 0:01:05]}  Rf8 {[%clk 0:01:09]} 31. Rxb5 {[%clk 0:01:05]}  a4 {[%clk 0:01:06]} 32. a3 {[%clk 0:00:44]}  Rab8 {[%clk 0:01:00]} 33. Rb4 {[%clk 0:00:34]}  Rxb4 {[%clk 0:00:56]} 34. axb4 {[%clk 0:00:33]}  Ra8 {[%clk 0:00:54]} 35. Rc7 {[%clk 0:00:28]}  a3 {[%clk 0:00:48]} 36. bxa3 {[%clk 0:00:28]}  Rxa3 {[%clk 0:00:48]} 37. Rxc4 {[%clk 0:00:28]}  Rb3 {[%clk 0:00:49]} 38. Kf2 {[%clk 0:00:27]}  Bf8 {[%clk 0:00:48]} 39. Kf3 {[%clk 0:00:26]}  Kg7 {[%clk 0:00:48]} 40. Bf2 {[%clk 0:00:20]}  Be7 {[%clk 0:00:47]} 41. e4 {[%clk 0:00:20]}  h5 {[%clk 0:00:44]} 42. Bd4 {[%clk 0:00:19]}  hxg4+ {[%clk 0:00:43]} 43. hxg4 {[%clk 0:00:20]}  Rb1 {[%clk 0:00:40]} 44. Rc7 {[%clk 0:00:19]}  Bg5 {[%clk 0:00:40]} 45. Ke2 {[%clk 0:00:19]}  Bf4 {[%clk 0:00:32]} 46. Kd3 {[%clk 0:00:18]}  Kh6 {[%clk 0:00:10]} 47. Rxf7 {[%clk 0:00:16]}  Kg5 {[%clk 0:00:10]} 48. Rf6 {[%clk 0:00:16]}  Kxg4 {[%clk 0:00:09]} 49. Rxg6+ {[%clk 0:00:16]}  Kf3 {[%clk 0:00:10]} 50. Rxe6 {[%clk 0:00:16]}  Rd1+ {[%clk 0:00:08]} 51. Kc4 {[%clk 0:00:16]}  Kxe4 {[%clk 0:00:09]} 52. b5 {[%clk 0:00:15]}  Rb1 {[%clk 0:00:10]} 53. Re8 {[%clk 0:00:15]}  Bc1 {[%clk 0:00:08]} 54. b6 {[%clk 0:00:15]}  Ba3 {[%clk 0:00:08]} 55. Rh8 {[%clk 0:00:15]} 1-0


[Site "https://www.chess.com"]

[Event "Titled Tuesday Blitz September 27 Early 2022"]
[White "Hambleton, Aman"]
[Black "Aakanksha Hagawane"]
[WhiteFideId "2606577"]
[BlackFideId "25014510"]
[WhiteElo "2538"]
[BlackElo "1971"]
[Result "1-0"]
[Round "06"]
[TimeControl "180+1"]
[Date "2022.09.27"]
[WhiteClock "0:00:10"]
[BlackClock "0:00:26"]

1. b3 {[%clk 0:02:56]}  d5 {[%clk 0:02:58]} 2. Bb2 {[%clk 0:02:57]}  c5 {[%clk 0:02:58]} 3. g3 {[%clk 0:02:52]}  Nc6 {[%clk 0:02:58]} 4. Bg2 {[%clk 0:02:39]}  e5 {[%clk 0:02:57]} 5. e3 {[%clk 0:02:27]}  Be6 {[%clk 0:02:50]} 6. d3 {[%clk 0:02:19]}  Bd6 {[%clk 0:02:47]} 7. Nd2 {[%clk 0:02:16]}  Nge7 {[%clk 0:02:47]} 8. h3 {[%clk 0:02:13]}  O-O {[%clk 0:02:46]} 9. a3 {[%clk 0:02:11]}  f5 {[%clk 0:02:46]} 10. Ngf3 {[%clk 0:01:49]}  h6 {[%clk 0:02:36]} 11. c4 {[%clk 0:01:46]}  d4 {[%clk 0:02:20]} 12. e4 {[%clk 0:01:43]}  fxe4 {[%clk 0:02:07]} 13. Nxe4 {[%clk 0:01:44]}  Bf5 {[%clk 0:01:59]} 14. Nfd2 {[%clk 0:01:43]}  b6 {[%clk 0:01:52]} 15. O-O {[%clk 0:01:40]}  Rc8 {[%clk 0:01:51]} 16. Kh2 {[%clk 0:01:37]}  Bb8 {[%clk 0:01:50]} 17. Qe2 {[%clk 0:01:35]}  Qd7 {[%clk 0:01:50]} 18. Rae1 {[%clk 0:01:34]}  Rce8 {[%clk 0:01:50]} 19. Bc1 {[%clk 0:01:31]}  Ng6 {[%clk 0:01:48]} 20. Qd1 {[%clk 0:01:24]}  Rf7 {[%clk 0:01:43]} 21. Re2 {[%clk 0:01:04]}  Ref8 {[%clk 0:01:38]} 22. Rfe1 {[%clk 0:01:04]}  Be6 {[%clk 0:01:08]} 23. Qc2 {[%clk 0:00:24]}  Rf5 {[%clk 0:01:06]} 24. Kg1 {[%clk 0:00:16]}  R5f7 {[%clk 0:01:01]} 25. Kh2 {[%clk 0:00:16]}  Rf5 {[%clk 0:00:59]} 26. Qb1 {[%clk 0:00:16]}  Rh5 {[%clk 0:00:59]} 27. h4 {[%clk 0:00:13]}  Qd8 {[%clk 0:00:49]} 28. Rh1 {[%clk 0:00:08]}  Bg4 {[%clk 0:00:34]} 29. Ree1 {[%clk 0:00:08]}  Nxh4 {[%clk 0:00:32]} 30. gxh4 {[%clk 0:00:07]}  Rxh4+ {[%clk 0:00:32]} 31. Kg1 {[%clk 0:00:08]}  Rxh1+ {[%clk 0:00:31]} 32. Bxh1 {[%clk 0:00:05]}  Qh4 {[%clk 0:00:31]} 33. Nf1 {[%clk 0:00:05]}  Ne7 {[%clk 0:00:28]} 34. Nfg3 {[%clk 0:00:04]}  Nf5 {[%clk 0:00:27]} 35. Qc2 {[%clk 0:00:04]}  Qh3 {[%clk 0:00:26]} 36. Bg2 {[%clk 0:00:03]}  Qh4 {[%clk 0:00:26]} 37. Nxf5 {[%clk 0:00:02]}  Rxf5 {[%clk 0:00:25]} 38. Ng3 {[%clk 0:00:02]}  Rg5 {[%clk 0:00:25]} 39. Bxg5 {[%clk 0:00:01]}  Qxg5 {[%clk 0:00:26]} 40. Qc1 {[%clk 0:00:02]}  Qf6 {[%clk 0:00:26]} 41. Re4 {[%clk 0:00:01]}  Bf3 {[%clk 0:00:25]} 42. Bxf3 {[%clk 0:00:02]}  Qxf3 {[%clk 0:00:26]} 43. Qc2 {[%clk 0:00:02]}  Bd6 {[%clk 0:00:25]} 44. Qe2 {[%clk 0:00:02]}  Qf6 {[%clk 0:00:25]} 45. Qg4 {[%clk 0:00:02]}  a5 {[%clk 0:00:23]} 46. Kg2 {[%clk 0:00:02]}  Qf8 {[%clk 0:00:22]} 47. Re1 {[%clk 0:00:01]}  Qf6 {[%clk 0:00:21]} 48. Qf3 {[%clk 0:00:02]}  Qg6 {[%clk 0:00:21]} 49. Re4 {[%clk 0:00:02]}  Qf6 {[%clk 0:00:20]} 50. Qxf6 {[%clk 0:00:02]}  gxf6 {[%clk 0:00:21]} 51. Nf5 {[%clk 0:00:03]}  Bf8 {[%clk 0:00:21]} 52. Rg4+ {[%clk 0:00:04]}  Kf7 {[%clk 0:00:22]} 53. Kf3 {[%clk 0:00:04]}  Ke6 {[%clk 0:00:22]} 54. Ke4 {[%clk 0:00:05]}  h5 {[%clk 0:00:22]} 55. Rg2 {[%clk 0:00:05]}  Kf7 {[%clk 0:00:22]} 56. a4 {[%clk 0:00:06]}  Ke6 {[%clk 0:00:23]} 57. Rh2 {[%clk 0:00:06]}  Kf7 {[%clk 0:00:23]} 58. Rxh5 {[%clk 0:00:07]}  Kg6 {[%clk 0:00:24]} 59. Rh3 {[%clk 0:00:08]}  Kf7 {[%clk 0:00:24]} 60. f4 {[%clk 0:00:08]}  Ke6 {[%clk 0:00:24]} 61. fxe5 {[%clk 0:00:09]}  fxe5 {[%clk 0:00:25]} 62. Rg3 {[%clk 0:00:09]}  Kf6 {[%clk 0:00:25]} 63. Rg2 {[%clk 0:00:09]}  Ke6 {[%clk 0:00:26]} 64. Rg6+ {[%clk 0:00:09]}  Kf7 {[%clk 0:00:26]} 65. Rxb6 {[%clk 0:00:10]} 1-0


[Site "https://www.chess.com"]